fUSD/lending_fUSD_20251102
["ID","MTS","AMOUNT","RATE_DAILY","PERIOD"]
[392907657,1762122642374,-151.0,0.00015,2]
[392907659,1762122642383,-151.0,0.00015,2]
[392907660,1762122642394,-151.0,0.00015,2]
[392907661,1762122642403,-151.0,0.00015,2]
[392907662,1762122642413,-151.0,0.00015,2]
[392907663,1762122642423,-237.41466532,0.00015,2]
[392907664,1762122642432,-151.0,0.00015,2]
[392907665,1762122642442,-2389373.16145279,0.00015,2]
[392907666,1762122642452,-151.0,0.00015,2]
[392907667,1762122642461,-151.0,0.00015,2]
[392907668,1762122642471,-151.0,0.00015,2]
[392907669,1762122642482,-151.0,0.00015,2]
[392907670,1762122642493,-151.0,0.00015,2]
[392907671,1762122642504,-151.0,0.00015,2]
[392907672,1762122642513,-151.0,0.00015,2]
[392907673,1762122642524,-151.0,0.00015,2]
[392907674,1762122642534,-151.0,0.00015,2]
[392907675,1762122642544,-151.0,0.00015,2]
[392907676,1762122642555,-151.0,0.00015,2]
[392907677,1762122642565,-160.0,0.00015,2]
[392907678,1762122642574,-151.0,0.00015,2]
[392907679,1762122642583,-151.0,0.00015,2]
[392907680,1762122642594,-151.0,0.00015,2]
[392907681,1762122642603,-151.0,0.00015,2]
[392907682,1762122642613,-151.0,0.00015,2]
[392907683,1762122642622,-189.508948,0.00015,2]
[392907684,1762122642631,-151.0,0.00015,2]
[392907685,1762122642640,-166.06285,0.00015,2]
[392907686,1762122642650,-151.0,0.00015,2]
[392907687,1762122642659,-153.072125,0.00015,2]
[392907688,1762122642668,-151.0,0.00015,2]
[392907689,1762122642677,-163.166422,0.00015,2]
[392907690,1762122642686,-151.0,0.00015,2]
[392907691,1762122642696,-151.0,0.00015,2]
[392907692,1762122642705,-151.0,0.00015,2]
[392907693,1762122642714,-166.178201,0.00015,2]
[392907694,1762122642727,-151.0,0.00015,2]
[392907695,1762122642737,-151.0,0.00015,2]
[392907696,1762122642746,-151.0,0.00015,2]
[392907697,1762122642755,-151.0,0.00015,2]
[392907698,1762122642763,-151.0,0.00015,2]
[392907699,1762122642772,-151.0,0.00015,2]
[392907700,1762122642781,-151.0,0.00015,2]
[392907701,1762122642790,-227.140288,0.00015,2]
[392907702,1762122642799,-154.614434,0.00015,2]
[392907703,1762122642808,-258.602618,0.00015,2]
[392907704,1762122642817,-151.0,0.00015,2]
[392907705,1762122642826,-151.0,0.00015,2]
[392907706,1762122642835,-168.199841,0.00015,2]
[392907707,1762122642844,-162.772792,0.00015,2]
[392907708,1762122642853,-151.0,0.00015,2]
[392907709,1762122642863,-151.0,0.00015,2]
[392907710,1762122642872,-151.0,0.00015,2]
[392907711,1762122642881,-459.0,0.00015,2]
[392907712,1762122642890,-151.0,0.00015,2]
[392907713,1762122642900,-151.0,0.00015,2]
[392907714,1762122642909,-151.0,0.00015,2]
[392907715,1762122642919,-151.0,0.00015,2]
[392907716,1762122642928,-151.0,0.00015,2]
[392907717,1762122642937,-177.371952,0.00015,2]
[392907718,1762122642947,-244.85521,0.00015,2]
[392907719,1762122642956,-244.85521,0.00015,2]
[392907720,1762122642965,-151.0,0.00015,2]
[392907721,1762122642974,-244.85521,0.00015,2]
[392907722,1762122642983,-151.0,0.00015,2]
[392907723,1762122642992,-244.85521,0.00015,2]
[392907724,1762122643002,-151.0,0.00015,2]
[392907725,1762122643011,-244.85521,0.00015,2]
[392907726,1762122643021,-151.0,0.00015,2]
[392907727,1762122643030,-244.85521,0.00015,2]
[392907728,1762122643039,-151.0,0.00015,2]
[392907729,1762122643048,-244.85521,0.00015,2]
[392907730,1762122643057,-300.444202,0.00015,2]
[392907731,1762122643067,-244.85521,0.00015,2]
[392907732,1762122643076,-244.85521,0.00015,2]
[392907733,1762122643085,-244.85521,0.00015,2]
[392907734,1762122643094,-244.85521,0.00015,2]
[392907735,1762122643104,-244.85521,0.00015,2]
[392907736,1762122643116,-244.85521,0.00015,2]
[392907737,1762122643126,-244.85521,0.00015,2]
[392907738,1762122643135,-244.85521,0.00015,2]
[392907739,1762122643144,-244.85521,0.00015,2]
[392907740,1762122643154,-151.0,0.00015,2]
[392907741,1762122643164,-210.440208,0.00015,2]
[392907742,1762122643173,-244.85521,0.00015,2]
[392907743,1762122643182,-151.0,0.00015,2]
[392907744,1762122643191,-210.440208,0.00015,2]
[392907745,1762122643200,-244.85521,0.00015,2]
[392907746,1762122643209,-210.440208,0.00015,2]
[392907747,1762122643219,-244.85521,0.00015,2]
[392907748,1762122643228,-210.440208,0.00015,2]
[392907749,1762122643238,-244.855201,0.00015,2]
[392907750,1762122643247,-210.440208,0.00015,2]
[392907751,1762122643256,-210.440208,0.00015,2]
[392907752,1762122643265,-210.440208,0.00015,2]
[392907753,1762122643275,-245.180841,0.00015,2]
[392907754,1762122643284,-210.440208,0.00015,2]
[392907755,1762122643294,-210.440208,0.00015,2]
[392907756,1762122643303,-210.440208,0.00015,2]
[392907757,1762122643312,-210.440208,0.00015,2]
[392907758,1762122643322,-210.440208,0.00015,2]
[392907759,1762122643331,-428.381171,0.00015,2]
[392907760,1762122643340,-210.440208,0.00015,2]
[392907761,1762122643349,-428.381171,0.00015,2]
[392907762,1762122643359,-210.440208,0.00015,2]
[392907763,1762122643368,-428.381171,0.00015,2]
[392907764,1762122643377,-428.381171,0.00015,2]
[392907765,1762122643386,-210.440208,0.00015,2]
[392907766,1762122643395,-428.381171,0.00015,2]
[392907767,1762122643405,-210.440208,0.00015,2]
[392907768,1762122643414,-428.381171,0.00015,2]
[392907769,1762122643423,-210.440208,0.00015,2]
[392907770,1762122643433,-428.381171,0.00015,2]
[392907771,1762122643442,-210.440208,0.00015,2]
[392907772,1762122643451,-428.381171,0.00015,2]
[392907773,1762122643460,-210.440208,0.00015,2]
[392907774,1762122643469,-428.381171,0.00015,2]
[392907775,1762122643479,-210.440207,0.00015,2]
[392907776,1762122643488,-428.381171,0.00015,2]
[392907777,1762122643499,-428.381171,0.00015,2]
[392907778,1762122643509,-428.381171,0.00015,2]
[392907779,1762122643518,-151.0,0.00015,2]
[392907780,1762122643527,-428.381171,0.00015,2]
[392907781,1762122643537,-151.0,0.00015,2]
[392907782,1762122643547,-428.381171,0.00015,2]
[392907783,1762122643557,-428.381171,0.00015,2]
[392907784,1762122643566,-428.381171,0.00015,2]
[392907785,1762122643576,-151.0,0.00015,2]
[392907786,1762122643585,-428.381171,0.00015,2]
[392907787,1762122643594,-151.0,0.00015,2]
[392907788,1762122643603,-428.381171,0.00015,2]
[392907789,1762122643612,-151.0,0.00015,2]
[392907790,1762122643621,-428.381171,0.00015,2]
[392907791,1762122643630,-151.0,0.00015,2]
[392907792,1762122643639,-149668.89687277,0.00015,2]
[392907793,1762122643648,-428.381169,0.00015,2]
[392907794,1762122643657,-151.0,0.00015,2]
[392907795,1762122643666,-151.0,0.00015,2]
[392907796,1762122643676,-151.0,0.00015,2]
[392907797,1762122643686,-151.0,0.00015,2]
[392907798,1762122643696,-264.102722,0.00015,2]
[392907799,1762122643708,-586.883276,0.00015,2]
[392907800,1762122643717,-586.883276,0.00015,2]
[392907801,1762122643727,-586.883276,0.00015,2]
[392907802,1762122643737,-586.883276,0.00015,2]
[392907803,1762122643747,-586.883276,0.00015,2]
[392907804,1762122643758,-586.883276,0.00015,2]
[392907805,1762122643768,-586.883276,0.00015,2]
[392907806,1762122643778,-586.883276,0.00015,2]
[392907807,1762122643787,-586.883276,0.00015,2]
[392907808,1762122643796,-586.883276,0.00015,2]
[392907809,1762122643805,-151.0,0.00015,2]
[392907810,1762122643814,-586.883276,0.00015,2]
[392907811,1762122643823,-160.782662,0.00015,2]
[392907812,1762122643832,-586.883276,0.00015,2]
[392907813,1762122643841,-586.883276,0.00015,2]
[392907814,1762122643850,-586.883276,0.00015,2]
[392907815,1762122643858,-586.883276,0.00015,2]
[392907816,1762122643867,-586.883276,0.00015,2]
[392907817,1762122643876,-586.883276,0.00015,2]
[392907818,1762122643886,-586.883276,0.00015,2]
[392907819,1762122643895,-586.883276,0.00015,2]
[392907820,1762122643905,-586.883283,0.00015,2]
[392907821,1762122643915,-151.0,0.00015,2]
[392907822,1762122643923,-153.473802,0.00015,2]
[392907823,1762122643933,-151.0,0.00015,2]
[392907824,1762122643942,-151.0,0.00015,2]
[392907825,1762122643952,-963.0,0.00015,2]
[392907826,1762122643962,-201.597403,0.00015,2]
[392907827,1762122643971,-201.597403,0.00015,2]
[392907828,1762122643980,-201.597403,0.00015,2]
[392907829,1762122643989,-201.597403,0.00015,2]
[392907830,1762122643998,-201.597403,0.00015,2]
[392907831,1762122644007,-201.597403,0.00015,2]
[392907832,1762122644016,-201.597403,0.00015,2]
[392907833,1762122644025,-201.597403,0.00015,2]
[392907834,1762122644034,-201.597403,0.00015,2]
[392907835,1762122644043,-201.597403,0.00015,2]
[392907836,1762122644052,-201.597403,0.00015,2]
[392907837,1762122644061,-201.597403,0.00015,2]
[392907838,1762122644070,-201.597403,0.00015,2]
[392907839,1762122644079,-201.597403,0.00015,2]
[392907840,1762122644088,-201.597403,0.00015,2]
[392907841,1762122644098,-201.597403,0.00015,2]
[392907842,1762122644107,-201.597403,0.00015,2]
[392907843,1762122644116,-201.597403,0.00015,2]
[392907844,1762122644125,-201.597403,0.00015,2]
[392907845,1762122644135,-201.597411,0.00015,2]
[392907846,1762122644144,-151.0,0.00015,2]
[392907847,1762122644154,-151.0,0.00015,2]
[392907848,1762122644164,-151.0,0.00015,2]
[392907849,1762122644173,-151.0,0.00015,2]
[392907850,1762122644183,-151.0,0.00015,2]
[392907851,1762122644192,-151.0,0.00015,2]
[392907852,1762122644201,-151.0,0.00015,2]
[392907853,1762122644210,-151.0,0.00015,2]
[392907854,1762122644219,-151.0,0.00015,2]
[392907855,1762122644229,-151.0,0.00015,2]
[392907856,1762122644238,-151.0,0.00015,2]
[392907857,1762122644254,-151.0,0.00015,2]
[392907858,1762122644267,-151.0,0.00015,2]
[392907859,1762122644277,-151.0,0.00015,2]
[392907860,1762122644287,-310.779925,0.00015,2]
[392907861,1762122644296,-310.779925,0.00015,2]
[392907862,1762122644306,-310.779925,0.00015,2]
[392907863,1762122644315,-310.779925,0.00015,2]
[392907864,1762122644325,-310.779925,0.00015,2]
[392907865,1762122644337,-310.779925,0.00015,2]
[392907866,1762122644347,-310.779925,0.00015,2]
[392907867,1762122644356,-310.779925,0.00015,2]
[392907868,1762122644366,-310.779925,0.00015,2]
[392907869,1762122644375,-310.779925,0.00015,2]
[392907870,1762122644384,-310.779925,0.00015,2]
[392907871,1762122644394,-310.779925,0.00015,2]
[392907872,1762122644403,-310.779925,0.00015,2]
[392907873,1762122644412,-310.779925,0.00015,2]
[392907874,1762122644422,-310.779925,0.00015,2]
[392907875,1762122644433,-310.779925,0.00015,2]
[392907876,1762122644442,-310.779925,0.00015,2]
[392907877,1762122644451,-310.779925,0.00015,2]
[392907878,1762122644461,-310.779925,0.00015,2]
[392907879,1762122644471,-310.779918,0.00015,2]
[392907880,1762122644480,-151.0,0.00015,2]
[392907881,1762122644489,-151.0,0.00015,2]
[392907882,1762122644499,-1000.0,0.00015,2]
[392907883,1762122644508,-151.0,0.00015,2]
[392907884,1762122644518,-151.0,0.00015,2]
[392907885,1762122644528,-151.0,0.00015,2]
[392907886,1762122644538,-151.0,0.00015,2]
[392907887,1762122644547,-151.0,0.00015,2]
[392907888,1762122644557,-151.0,0.00015,2]
[392907889,1762122644566,-151.0,0.00015,2]
[392907890,1762122644575,-151.0,0.00015,2]
[392907891,1762122644584,-151.0,0.00015,2]
[392907892,1762122644593,-151.0,0.00015,2]
[392907893,1762122644603,-151.0,0.00015,2]
[392907894,1762122644612,-151.0,0.00015,2]
[392907895,1762122644623,-151.0,0.00015,2]
[392907896,1762122644632,-279.732016,0.00015,2]
[392907897,1762122644642,-151.0,0.00015,2]
[392907898,1762122644651,-154.412552,0.00015,2]
[392907899,1762122644660,-151.0,0.00015,2]
[392907900,1762122644670,-151.0,0.00015,2]
[392907901,1762122644678,-158.042219,0.00015,2]
[392907902,1762122644687,-151.0,0.00015,2]
[392907903,1762122644697,-151.0,0.00015,2]
[392907904,1762122644706,-171.063791,0.00015,2]
[392907905,1762122644715,-171.063791,0.00015,2]
[392907906,1762122644724,-171.063791,0.00015,2]
[392907907,1762122644733,-171.063791,0.00015,2]
[392907908,1762122644742,-171.063791,0.00015,2]
[392907909,1762122644751,-171.063791,0.00015,2]
[392907910,1762122644761,-171.063791,0.00015,2]
[392907911,1762122644770,-171.063791,0.00015,2]
[392907912,1762122644779,-171.063791,0.00015,2]
[392907913,1762122644789,-171.063791,0.00015,2]
[392907914,1762122644799,-171.063791,0.00015,2]
[392907915,1762122644809,-171.063791,0.00015,2]
[392907916,1762122644819,-171.063791,0.00015,2]
[392907917,1762122644828,-171.063791,0.00015,2]
[392907918,1762122644839,-208.0,0.00015014,2]
[392907919,1762122644849,-1161.0,0.00015016,2]
[392907920,1762122644861,-1161.0,0.00015049,2]
[392907921,1762122644872,-15335.64574352,0.00015089,2]
[392907922,1762122644884,-1395.79,0.000151,2]
[392907923,1762122644895,-697.96,0.000151,2]
[392907924,1762122644905,-548.74,0.000151,2]
[392907925,1762122644914,-697.96,0.000151,2]
[392907926,1762122644924,-176.77,0.000151,2]
[392907927,1762122644934,-417.73,0.000151,2]
[392907928,1762122644943,-698.05,0.000151,2]
[392907929,1762122644952,-953.39,0.000151,2]
[392907930,1762122644961,-176.49,0.000151,2]
[392907931,1762122644970,-476.74,0.000151,2]
[392907932,1762122644979,-153.86,0.000151,2]
[392907933,1762122644988,-698.05,0.000151,2]
[392907934,1762122644997,-1914.38,0.000151,2]
[392907935,1762122645007,-414.98,0.000151,2]
[392907936,1762122645016,-679.08,0.000151,2]
[392907937,1762122645025,-432.42,0.000151,2]
[392907938,1762122645037,-869.22,0.000151,2]
[392907939,1762122645046,-548.81,0.000151,2]
[392907940,1762122645055,-150.0,0.000151,2]
[392907941,1762122645064,-942.96,0.000151,2]
[392907942,1762122645073,-548.74,0.000151,2]
[392907943,1762122645082,-168.88,0.000151,2]
[392907944,1762122645092,-638.0,0.00015135,2]
[392907945,1762122645101,-198.13719527,0.00015136,2]
[392907946,1762122645111,-500.0,0.00015136,2]
[392907947,1762122645121,-555.98606749,0.00015136,2]
[392907948,1762122645130,-150.0,0.00015136,2]
[392907949,1762122645140,-250.0,0.00015136,2]
[392907950,1762122645150,-482.4,0.00015161,2]
[392907951,1762122645159,-168.0,0.00015162,2]
[392907952,1762122645169,-1161.0,0.00015167,2]
[392907953,1762122645414,-168.0,0.00015169,2]
[392907954,1762122645424,-150.0,0.000152,2]
[392907955,1762122645433,-150.0,0.000152,2]
[392907956,1762122645443,-150.0,0.000152,2]
[392907957,1762122645452,-548.81,0.000152,2]
[392907958,1762122645462,-694.87,0.000152,2]
[392907959,1762122645471,-697.96,0.000152,2]
[392907960,1762122645480,-1395.79,0.000152,2]
[392907961,1762122645490,-548.74,0.000152,2]
[392907962,1762122645499,-176.77,0.000152,2]
[392907963,1762122645509,-825.66,0.000152,2]
[392907964,1762122645518,-476.74,0.000152,2]
[392907965,1762122645527,-176.77,0.000152,2]
[392907966,1762122645536,-476.74,0.000152,2]
[392907967,1762122645546,-337.46,0.000152,2]
[392907968,1762122645555,-150.0,0.000152,2]
[392907969,1762122645564,-698.05,0.000152,2]
[392907970,1762122645573,-1000.0,0.000152,2]
[392907971,1762122645582,-698.05,0.000152,2]
[392907972,1762122645592,-548.74,0.000152,2]
[392907973,1762122645601,-300.0,0.000152,2]
[392907974,1762122645611,-168.91,0.000152,2]
[392907975,1762122645620,-415.29,0.000152,2]
[392907976,1762122645629,-353.33,0.000152,2]
[392907977,1762122645638,-3039.57999,0.000152,2]
[392907978,1762122645649,-934.16,0.00015247,2]
[392907979,1762122645659,-5888.0,0.00015269,2]
[392907980,1762122645669,-162.2636248,0.0001527,2]
[392907981,1762122645679,-500.0,0.00015273,2]
[392907982,1762122645691,-638.0,0.0001528,2]
[392907983,1762122645702,-152.0,0.00015294,3]
[392907984,1762122645712,-300.0,0.00015295,2]
[392907985,1762122645721,-1161.0,0.00015298,2]
[392907986,1762122645731,-168.0,0.00015299,2]
[392907987,1762122645740,-1517.64,0.000153,2]
[392907988,1762122645749,-300.0,0.000153,2]
[392907989,1762122645758,-5324.0,0.00015326,2]
[392907990,1762122645767,-16530.87655073,0.000154,2]
[392907991,1762122645777,-502.77940475,0.000154,2]
[392907992,1762122645787,-486.65680908,0.0001541,2]
[392907993,1762122645796,-1161.0,0.00015446,2]
[392907994,1762122645805,-5324.0,0.0001548,2]
[392907995,1762122645815,-1000.0,0.00015521,2]
[392907996,1762122645825,-1000.0,0.00015521,2]
[392907997,1762122645836,-1000.0,0.00015521,2]
[392907998,1762122645846,-934.16,0.00015521,2]
[392907999,1762122645856,-245.5,0.00015527,2]
[392908000,1762122645867,-514.84070869,0.00015534,2]
[392908001,1762122645876,-166.66,0.00015564,2]
[392908002,1762122645886,-1161.0,0.00015569,2]
[392908003,1762122645896,-168.0,0.00015588,2]
[392908004,1762122645905,-1600.0,0.00015593,2]
[392908005,1762122645914,-5324.0,0.000156,2]
[392908006,1762122645923,-166.67,0.00015649,2]
[392908007,1762122645932,-5324.0,0.00015677,2]
[392908008,1762122645941,-638.0,0.0001571,2]
[392908009,1762122645951,-1161.0,0.00015752,2]
[392908010,1762122645961,-1000.0,0.00015762,2]
[392908011,1762122645970,-934.16,0.00015795,2]
[392908012,1762122645980,-774.0,0.000158,2]
[392908013,1762122645990,-2214.95147681,0.00015807,2]
[392908014,1762122645999,-1161.0,0.00015875,2]
[392908015,1762122646008,-255.0,0.00015895,2]
[392908016,1762122646017,-802.0,0.000159,3]
[392908017,1762122646026,-506.0,0.00015982,2]
[392908018,1762122646035,-6393.863961,0.00015988,2]
[392908019,1762122646045,-638.0,0.00015991,2]
[392908020,1762122646054,-730.0,0.00016,3]
[392908021,1762122646064,-1000.0,0.00016,2]
[392908022,1762122646073,-500.0,0.00016,2]
[392908023,1762122646082,-5640.83556094,0.00016,2]
[392908024,1762122646092,-500.00000006,0.00016,2]
[392908026,1762122646101,-160.0,0.00016,2]
[392908027,1762122646111,-2500.0,0.00016028,2]
[392908028,1762122646120,-300.0,0.00016028,2]
[392908029,1762122646130,-250.0,0.00016028,2]
[392908030,1762122646139,-300.0,0.00016028,2]
[392908031,1762122646149,-250.0,0.00016028,2]
[392908032,1762122646158,-195.0,0.00016028,2]
[392908033,1762122646167,-150.18355236,0.00016028,2]
[392908034,1762122646176,-412.73496555,0.00016062,2]
[392908035,1762122646186,-638.0,0.00016063,2]
[392908036,1762122646195,-934.16,0.00016068,2]
[392908037,1762122646205,-1500.0,0.00016068,2]
[392908038,1762122646214,-1500.0,0.00016068,2]
[392908039,1762122646224,-1500.0,0.00016068,2]
[392908040,1762122646234,-533.88981491,0.00016082,2]
[392908041,1762122646243,-193.0,0.00016103,2]
[392908042,1762122646252,-300.0,0.00016103,2]
[392908043,1762122646261,-250.0,0.00016103,2]
[392908044,1762122646270,-195.0,0.00016103,2]
[392908045,1762122646279,-300.0,0.00016103,2]
[392908046,1762122646288,-5000.0,0.00016103,2]
[392908047,1762122646298,-150.0,0.00016103,2]
[392908048,1762122646307,-248.71531821,0.00016128,2]
[392908049,1762122646316,-166.66,0.00016157,2]
[392908050,1762122646325,-420.0,0.00016171,2]
[392908051,1762122646336,-420.0,0.00016171,2]
[392908052,1762122646346,-5000.00267949,0.000162,5]
[392908053,1762122646355,-612.49219682,0.00016201,2]
[392908054,1762122646364,-1426.6638895,0.00016209,2]
[392908055,1762122646374,-1680.0,0.00016248,2]
[392908056,1762122646383,-245.5,0.00016303,2]
[392908057,1762122646392,-882.4162707,0.00016338,2]
[392908058,1762122646401,-200.0,0.0001634,2]
[392908059,1762122646411,-934.16,0.00016342,2]
[392908060,1762122646420,-162.2636248,0.0001636,2]
[392908061,1762122646430,-500.0,0.00016438,2]
[392908062,1762122646440,-433.0,0.00016438,2]
[392908063,1762122646449,-500.0,0.00016438,2]
[392908064,1762122646459,-338.10866658,0.00016438,2]
[392908065,1762122646468,-500.0,0.00016438,2]
[392908066,1762122646478,-500.0,0.00016438,2]
[392908067,1762122646488,-500.0,0.00016438,2]
[392908068,1762122646497,-500.0,0.00016438,2]
[392908069,1762122646507,-500.0,0.00016438,2]
[392908070,1762122646517,-224.25,0.00016438,2]
[392908071,1762122646526,-5939.48,0.00016438,2]
[392908072,1762122646535,-300.0,0.00016438,3]
[392908073,1762122646545,-300.0,0.00016438,3]
[392908074,1762122646555,-300.0,0.00016438,3]
[392908075,1762122646564,-300.0,0.00016438,3]
[392908076,1762122646574,-300.0,0.00016438,3]
[392908077,1762122646584,-151.0,0.00016438,2]
[392908078,1762122646593,-151.0,0.00016438,2]
[392908079,1762122646603,-151.0,0.00016438,2]
[392908080,1762122646613,-294.859152,0.00016438,2]
[392908081,1762122646623,-500.0,0.00016438,2]
[392908082,1762122646632,-163.24,0.0001644,2]
[392908083,1762122646641,-163.24,0.0001644,2]
[392908084,1762122646651,-163.24,0.0001644,2]
[392908085,1762122646661,-163.24,0.0001644,2]
[392908086,1762122646670,-163.24,0.0001644,2]
[392908087,1762122646679,-163.24,0.0001644,2]
[392908088,1762122646689,-163.24,0.0001644,2]
[392908089,1762122646698,-163.24,0.0001644,2]
[392908090,1762122646709,-163.24,0.0001644,2]
[392908091,1762122646719,-558.17011909,0.00016456,2]
[392908092,1762122646730,-1014.2954,0.00016534,2]
[392908093,1762122646741,-300.0,0.00016543,2]
[392908094,1762122646751,-500.0,0.00016575,2]
[392908095,1762122646761,-433.0,0.00016575,2]
[392908096,1762122646771,-356.35040549,0.000166,2]
[392908097,1762122646781,-934.16,0.00016616,2]
[392908098,1762122646791,-2000.0,0.00016616,2]
[392908099,1762122646802,-2000.0,0.00016616,2]
[392908100,1762122646812,-2000.0,0.00016616,2]
[392908101,1762122646821,-176.46,0.00016619,2]
[392908102,1762122646831,-162.13371828,0.00016619,2]
[392908103,1762122646841,-553.64373807,0.0001663,2]
[392908104,1762122646850,-196.8936838,0.00016637,2]
[392908105,1762122646860,-300.0,0.00016665,2]
[392908106,1762122646869,-482.4,0.00016701,2]
[392908107,1762122646880,-500.0,0.00016712,2]
[392908108,1762122646889,-433.0,0.00016712,2]
[392908109,1762122646899,-195.97,0.00016712,2]
[392908110,1762122646909,-166.66,0.0001675,2]
[392908111,1762122646919,-166.67,0.00016842,2]
[392908112,1762122646929,-500.0,0.00016849,2]
[392908113,1762122646939,-433.0,0.00016849,2]
[392908114,1762122646948,-386.7837072,0.00016884,7]
[392908115,1762122646958,-934.16,0.0001689,2]
[392908116,1762122646968,-1102.49332703,0.0001696,2]
[392908117,1762122646977,-150.0,0.00016973,2]
[392908118,1762122646987,-500.0,0.00016973,2]
[392908119,1762122646997,-500.0,0.00016973,2]
[392908120,1762122647008,-500.0,0.00016973,2]
[392908121,1762122647018,-500.0,0.00016973,2]
[392908122,1762122647027,-500.0,0.00016973,2]
[392908123,1762122647037,-500.0,0.00016973,2]
[392908124,1762122647047,-214.84688281,0.00016973,2]
[392908125,1762122647056,-500.0,0.00016973,2]
[392908126,1762122647066,-500.0,0.00016973,2]
[392908127,1762122647076,-312.1727886,0.00016973,2]
[392908128,1762122647086,-500.0,0.00016973,2]
[392908129,1762122647096,-500.0,0.00016973,2]
[392908130,1762122647106,-186.10371491,0.00016973,2]
[392908131,1762122647116,-500.0,0.00016973,2]
[392908132,1762122647125,-500.0,0.00016973,2]
[392908133,1762122647135,-500.0,0.00016973,2]
[392908134,1762122647144,-500.0,0.00016973,2]
[392908135,1762122647154,-500.0,0.00016973,2]
[392908136,1762122647164,-500.0,0.00016973,2]
[392908137,1762122647174,-300.0,0.00016985,2]
[392908138,1762122647183,-300.0,0.00016985,2]
[392908139,1762122647193,-300.0,0.00016985,2]
[392908140,1762122647202,-300.0,0.00016985,2]
[392908141,1762122647212,-306.97962031,0.00016985,2]
[392908142,1762122647221,-300.0,0.00016985,2]
[392908143,1762122647230,-300.0,0.00016985,2]
[392908144,1762122647240,-316.48765509,0.00016985,2]
[392908145,1762122647249,-500.0,0.00016986,2]
[392908146,1762122647259,-433.0,0.00016986,2]
[392908147,1762122647268,-441696.32,0.00016986,2]
[392908148,1762122647278,-161.49,0.00017,2]
[392908149,1762122647287,-151.0,0.00017,2]
[392908150,1762122647297,-1000.0,0.00017,2]
[392908151,1762122647307,-160.0,0.00017,7]
[392908152,1762122647316,-250.0,0.00017,2]
[392908153,1762122647326,-151.0,0.0001702,2]
[392908154,1762122647340,-179.36876122,0.0001702,2]
[392908155,1762122647350,-245.5,0.00017079,2]
[392908156,1762122647360,-433.0,0.00017106,2]
[392908157,1762122647370,-500.0,0.00017123,2]
[392908158,1762122647379,-433.0,0.00017123,2]